[Event "*** Titled Tuesday Blitz"]
[Site "Chess.com"]
[Date "2020.01.07"]
[Round "7"]
[White "promen1999"]
[Black "Sebastian"]
[Result "0-1"]
[WhiteElo "2789"]
[BlackElo "2957"]
[TimeControl "180+2"]
[EndTime "14:37:08 PST"]
[Termination "Sebastian won by resignation"]

1. Nf3 {[%clk 0:03:01.9]} 1... d5 {[%clk 0:03:00.2]} 2. g3 {[%clk 0:03:03]} 2...
Nf6 {[%clk 0:03:01.5]} 3. Bg2 {[%clk 0:03:04.5]} 3... e6 {[%clk 0:03:03.4]} 4.
O-O {[%clk 0:03:05.4]} 4... Be7 {[%clk 0:03:05.3]} 5. d4 {[%clk 0:03:06.3]} 5...
O-O {[%clk 0:03:07.2]} 6. Ne5 {[%clk 0:03:06]} 6... Nbd7 {[%clk 0:03:02.7]} 7.
c4 {[%clk 0:03:06.1]} 7... c6 {[%clk 0:03:04.1]} 8. Nxd7 {[%clk 0:03:01.9]} 8...
Nxd7 {[%clk 0:02:59.8]} 9. Nd2 {[%clk 0:03:02.2]} 9... b6 {[%clk 0:02:56.8]} 10.
e4 {[%clk 0:03:00]} 10... Ba6 {[%clk 0:02:51.3]} 11. b3 {[%clk 0:02:55.8]} 11...
Rc8 {[%clk 0:02:51.1]} 12. Bb2 {[%clk 0:02:54.9]} 12... Nf6 {[%clk 0:02:43.6]}
13. Re1 {[%clk 0:02:55.1]} 13... Bb4 {[%clk 0:02:42.6]} 14. e5 {[%clk
0:02:55.5]} 14... Nd7 {[%clk 0:02:41.9]} 15. Rc1 {[%clk 0:02:55.9]} 15... h6
{[%clk 0:02:39]} 16. a3 {[%clk 0:02:54]} 16... Be7 {[%clk 0:02:39.7]} 17. b4
{[%clk 0:02:54.2]} 17... Rc7 {[%clk 0:02:20.3]} 18. b5 {[%clk 0:02:35.9]} 18...
cxb5 {[%clk 0:02:13]} 19. cxd5 {[%clk 0:02:36.3]} 19... Rxc1 {[%clk 0:02:14.4]}
20. Bxc1 {[%clk 0:02:16]} 20... exd5 {[%clk 0:02:16.3]} 21. Bxd5 {[%clk
0:02:16.3]} 21... b4 {[%clk 0:02:17.3]} 22. Ne4 {[%clk 0:02:12.4]} 22... bxa3
{[%clk 0:02:12.5]} 23. Ba2 {[%clk 0:01:41.8]} 23... Bb7 {[%clk 0:01:20.1]} 24.
Qg4 {[%clk 0:01:36.9]} 24... Kh8 {[%clk 0:01:20.8]} 25. Qh5 {[%clk 0:01:31.8]}
25... Bxe4 {[%clk 0:00:41.9]} 26. Rxe4 {[%clk 0:01:31.4]} 26... Bg5 {[%clk
0:00:43.4]} 27. Bxa3 {[%clk 0:01:23.9]} 27... Be7 {[%clk 0:00:44.5]} 28. Bc1
{[%clk 0:01:01]} 28... Bg5 {[%clk 0:00:45.2]} 29. f4 {[%clk 0:00:54]} 29... Qc7
{[%clk 0:00:46.4]} 30. Ba3 {[%clk 0:00:37.1]} 30... Qc3 {[%clk 0:00:39.1]} 31.
Bxf8 {[%clk 0:00:34]} 31... Qa1+ {[%clk 0:00:40.1]} 32. Kg2 {[%clk 0:00:34.1]}
32... Qxa2+ {[%clk 0:00:41.4]} 33. Re2 {[%clk 0:00:35]} 33... Qe6 {[%clk
0:00:34.4]} 34. Bxg7+ {[%clk 0:00:33.8]} 34... Kxg7 {[%clk 0:00:35.3]} 35. fxg5
{[%clk 0:00:35.5]} 35... hxg5 {[%clk 0:00:34.3]} 36. Qxg5+ {[%clk 0:00:37.4]}
36... Kf8 {[%clk 0:00:35.7]} 37. h4 {[%clk 0:00:33.6]} 37... b5 {[%clk
0:00:33.4]} 38. h5 {[%clk 0:00:34.4]} 38... Ke8 {[%clk 0:00:28.4]} 39. h6 {[%clk
0:00:33.2]} 39... Nf8 {[%clk 0:00:29.6]} 40. Qf6 {[%clk 0:00:30.2]} 40... Qd5+
{[%clk 0:00:25.8]} 41. Kh2 {[%clk 0:00:31.1]} 41... Qc4 {[%clk 0:00:22]} 42. Rf2
{[%clk 0:00:29.9]} 42... b4 {[%clk 0:00:16.4]} 43. e6 {[%clk 0:00:21]} 43...
Qxe6 {[%clk 0:00:17.2]} 44. Qxe6+ {[%clk 0:00:22.2]} 44... fxe6 {[%clk
0:00:18.8]} 45. g4 {[%clk 0:00:18.6]} 45... a5 {[%clk 0:00:18.7]} 46. g5 {[%clk
0:00:19.2]} 46... b3 {[%clk 0:00:18.9]} 47. Kg3 {[%clk 0:00:15.2]} 47... a4
{[%clk 0:00:19.4]} 48. Rh2 {[%clk 0:00:14.5]} 48... a3 {[%clk 0:00:17.3]} 49. h7
{[%clk 0:00:15.5]} 49... Nxh7 {[%clk 0:00:18.5]} 50. Rxh7 {[%clk 0:00:16]} 50...
b2 {[%clk 0:00:19.9]} 51. Rb7 {[%clk 0:00:14.1]} 51... a2 {[%clk 0:00:20.9]} 52.
g6 {[%clk 0:00:12.4]} 52... b1=Q {[%clk 0:00:21.7]} 0-1

[Event "*** Titled Tuesday Blitz"]
[Site "Chess.com"]
[Date "2020.01.07"]
[Round "7"]
[White "FearlessKing64"]
[Black "HouseOfDurin"]
[Result "1-0"]
[WhiteElo "2286"]
[BlackElo "2114"]
[TimeControl "180+2"]
[EndTime "14:37:13 PST"]
[Termination "FearlessKing64 won by resignation"]

1. e4 {[%clk 0:03:01.5]} 1... c5 {[%clk 0:03:00.6]} 2. Nf3 {[%clk 0:03:02.3]}
2... Nc6 {[%clk 0:03:02]} 3. Nc3 {[%clk 0:03:02.6]} 3... e5 {[%clk 0:03:02.1]}
4. Bc4 {[%clk 0:03:02.3]} 4... g6 {[%clk 0:03:02.7]} 5. d3 {[%clk 0:02:40.2]}
5... h6 {[%clk 0:03:03]} 6. Be3 {[%clk 0:02:38.3]} 6... d6 {[%clk 0:03:03.8]} 7.
Qd2 {[%clk 0:02:38.4]} 7... Bg7 {[%clk 0:03:04.7]} 8. O-O-O {[%clk 0:02:36]}
8... Nge7 {[%clk 0:03:05.2]} 9. Nd5 {[%clk 0:02:36.1]} 9... Be6 {[%clk
0:02:47.8]} 10. Nh4 {[%clk 0:01:47.4]} 10... Bxd5 {[%clk 0:02:32.9]} 11. exd5
{[%clk 0:01:47.5]} 11... Nxd5 {[%clk 0:01:57]} 12. Bxd5 {[%clk 0:01:49.4]} 12...
Qxh4 {[%clk 0:01:56.3]} 13. f4 {[%clk 0:01:43.7]} 13... O-O {[%clk 0:01:42.9]}
14. g3 {[%clk 0:01:39.3]} 14... Qf6 {[%clk 0:01:36.4]} 15. c3 {[%clk 0:01:39]}
15... exf4 {[%clk 0:01:18.6]} 16. Bxf4 {[%clk 0:01:38.5]} 16... g5 {[%clk
0:00:45.1]} 17. Be3 {[%clk 0:01:38.7]} 17... Qg6 {[%clk 0:00:46]} 18. g4 {[%clk
0:01:23.1]} 18... Kh8 {[%clk 0:00:45]} 19. h4 {[%clk 0:01:22.4]} 19... Ne7
{[%clk 0:00:17]} 20. Be4 {[%clk 0:01:21.2]} 20... f5 {[%clk 0:00:17.7]} 21. gxf5
{[%clk 0:01:21.1]} 21... Nxf5 {[%clk 0:00:19.6]} 22. hxg5 {[%clk 0:01:20.3]}
22... h5 {[%clk 0:00:13.1]} 23. Rdf1 {[%clk 0:01:04.3]} 23... Rae8 {[%clk
0:00:12.9]} 24. Qh2 {[%clk 0:00:48.9]} 24... Rxe4 {[%clk 0:00:10.2]} 25. dxe4
{[%clk 0:00:36.1]} 25... Nxe3 {[%clk 0:00:10.7]} 26. Rxf8+ {[%clk 0:00:35]}
26... Bxf8 {[%clk 0:00:09.9]} 27. Qf2 {[%clk 0:00:30.3]} 27... Be7 {[%clk
0:00:03.9]} 28. Qf3 {[%clk 0:00:12.6]} 28... Ng4 {[%clk 0:00:03.8]} 29. Qxg4
{[%clk 0:00:13.4]} 29... Bxg5+ {[%clk 0:00:04.5]} 30. Kd1 {[%clk 0:00:10]} 30...
Kg7 {[%clk 0:00:04.9]} 31. Rxh5 {[%clk 0:00:10.6]} 31... Kf6 {[%clk 0:00:05.1]}
32. Qf5+ {[%clk 0:00:09.2]} 32... Qxf5 {[%clk 0:00:05.9]} 33. exf5 {[%clk
0:00:11.1]} 33... Kxf5 {[%clk 0:00:07.8]} 34. Rh7 {[%clk 0:00:12.4]} 34... b5
{[%clk 0:00:06.5]} 35. Rxa7 {[%clk 0:00:13.2]} 35... b4 {[%clk 0:00:07.8]} 36.
cxb4 {[%clk 0:00:14.4]} 36... cxb4 {[%clk 0:00:09.7]} 37. Rb7 {[%clk 0:00:15.7]}
37... Ke6 {[%clk 0:00:09.7]} 38. Rxb4 {[%clk 0:00:16.7]} 38... Be7 {[%clk
0:00:11.2]} 39. a4 {[%clk 0:00:17.2]} 39... d5 {[%clk 0:00:12.1]} 40. Rb6+
{[%clk 0:00:18.7]} 40... Ke5 {[%clk 0:00:13.1]} 41. a5 {[%clk 0:00:20.2]} 41...
Bc5 {[%clk 0:00:14.7]} 42. Rb5 {[%clk 0:00:21.3]} 42... Kd4 {[%clk 0:00:14.7]}
43. Rxc5 {[%clk 0:00:18.4]} 43... Kxc5 {[%clk 0:00:15.6]} 44. b4+ {[%clk
0:00:20.3]} 44... Kxb4 {[%clk 0:00:16.5]} 45. a6 {[%clk 0:00:21.7]} 45... Kc5
{[%clk 0:00:18]} 46. a7 {[%clk 0:00:23.5]} 46... d4 {[%clk 0:00:19.9]} 47. a8=Q
{[%clk 0:00:25.1]} 47... Kc4 {[%clk 0:00:21.8]} 48. Qd8 {[%clk 0:00:26.6]} 48...
Kd3 {[%clk 0:00:23.4]} 49. Qd6 {[%clk 0:00:28.1]} 49... Ke3 {[%clk 0:00:24.9]}
50. Qc5 {[%clk 0:00:29.6]} 50... Kd3 {[%clk 0:00:26.3]} 51. Qd5 {[%clk 0:00:31]}
51... Ke3 {[%clk 0:00:27.6]} 52. Qb3+ {[%clk 0:00:32.5]} 52... Ke4 {[%clk
0:00:28]} 53. Kd2 {[%clk 0:00:34.1]} 53... Ke5 {[%clk 0:00:29.4]} 54. Kd3 {[%clk
0:00:35.5]} 1-0

[Event "*** Titled Tuesday Blitz"]
[Site "Chess.com"]
[Date "2020.01.07"]
[Round "7"]
[White "Sneakiest_Of_Snakes"]
[Black "Roenko_Artur"]
[Result "1-0"]
[WhiteElo "2134"]
[BlackElo "2238"]
[TimeControl "180+2"]
[EndTime "14:37:18 PST"]
[Termination "Sneakiest_Of_Snakes won by resignation"]

1. e4 {[%clk 0:03:01.9]} 1... e6 {[%clk 0:03:00.6]} 2. d4 {[%clk 0:03:02.3]}
2... d5 {[%clk 0:03:02]} 3. Nc3 {[%clk 0:03:03.5]} 3... Bb4 {[%clk 0:03:01.8]}
4. e5 {[%clk 0:03:03.9]} 4... c5 {[%clk 0:03:03.3]} 5. a3 {[%clk 0:03:04.8]}
5... Bxc3+ {[%clk 0:03:04.7]} 6. bxc3 {[%clk 0:03:06.7]} 6... Qc7 {[%clk
0:03:02.3]} 7. Qg4 {[%clk 0:03:07.4]} 7... cxd4 {[%clk 0:03:02.7]} 8. Ne2 {[%clk
0:02:59.2]} 8... Qxe5 {[%clk 0:02:47.3]} 9. cxd4 {[%clk 0:02:58.3]} 9... Qf6
{[%clk 0:02:45.4]} 10. Bg5 {[%clk 0:02:55.2]} 10... Qf5 {[%clk 0:02:37.8]} 11.
Qxf5 {[%clk 0:02:56]} 11... exf5 {[%clk 0:02:38.4]} 12. Nc3 {[%clk 0:02:52.7]}
12... Be6 {[%clk 0:02:37.9]} 13. Bd3 {[%clk 0:02:49.7]} 13... f6 {[%clk
0:02:37.1]} 14. Bf4 {[%clk 0:02:48.6]} 14... Ne7 {[%clk 0:02:35.1]} 15. O-O
{[%clk 0:02:47.1]} 15... Kf7 {[%clk 0:02:36]} 16. Rfe1 {[%clk 0:02:45.2]} 16...
Nbc6 {[%clk 0:02:34.8]} 17. Nb5 {[%clk 0:02:16.7]} 17... g5 {[%clk 0:02:09.8]}
18. Bd2 {[%clk 0:02:04.6]} 18... Rad8 {[%clk 0:01:53.6]} 19. Nc7 {[%clk
0:01:52]} 19... Rd6 {[%clk 0:01:48.7]} 20. c4 {[%clk 0:01:46.4]} 20... Nxd4
{[%clk 0:01:17.1]} 21. Bb4 {[%clk 0:01:33.9]} 21... Rc6 {[%clk 0:01:17.2]} 22.
Nxe6 {[%clk 0:00:57.6]} 22... Rxe6 {[%clk 0:01:15.5]} 23. cxd5 {[%clk
0:00:57.1]} 23... Nxd5 {[%clk 0:00:46.2]} 24. Bc4 {[%clk 0:00:45.8]} 24... Rd8
{[%clk 0:00:43.6]} 25. Rad1 {[%clk 0:00:39.7]} 25... Rxe1+ {[%clk 0:00:35.6]}
26. Bxe1 {[%clk 0:00:38]} 26... Ke6 {[%clk 0:00:13.8]} 27. Rxd4 {[%clk
0:00:34.1]} 27... Ke5 {[%clk 0:00:14.2]} 28. Rxd5+ {[%clk 0:00:33.4]} 28... Rxd5
{[%clk 0:00:15.1]} 29. Bxd5 {[%clk 0:00:34.4]} 29... Kxd5 {[%clk 0:00:17]} 30.
Kf1 {[%clk 0:00:35.6]} 30... Kc4 {[%clk 0:00:17.7]} 31. Ke2 {[%clk 0:00:36.2]}
31... b6 {[%clk 0:00:17.2]} 32. Bb4 {[%clk 0:00:36.4]} 32... a5 {[%clk
0:00:17.7]} 33. Be7 {[%clk 0:00:37.3]} 33... Kb3 {[%clk 0:00:14]} 34. Kd3 {[%clk
0:00:38.4]} 34... b5 {[%clk 0:00:13.6]} 35. Kd2 {[%clk 0:00:38.8]} 35... f4
{[%clk 0:00:12.9]} 36. Kc1 {[%clk 0:00:37.9]} 36... g4 {[%clk 0:00:07.8]} 37.
Kb1 {[%clk 0:00:34.7]} 37... f5 {[%clk 0:00:08.9]} 38. Bd6 {[%clk 0:00:34.7]}
38... f3 {[%clk 0:00:09.8]} 39. g3 {[%clk 0:00:35.7]} 39... b4 {[%clk 0:00:09]}
40. axb4 {[%clk 0:00:36.3]} 40... axb4 {[%clk 0:00:09.7]} 41. Kc1 {[%clk
0:00:37.6]} 41... Kc3 {[%clk 0:00:10.5]} 42. Kd1 {[%clk 0:00:38]} 42... b3
{[%clk 0:00:11.1]} 43. Kc1 {[%clk 0:00:39.2]} 43... Kd3 {[%clk 0:00:12.2]} 44.
Kb2 {[%clk 0:00:39.6]} 44... Kc4 {[%clk 0:00:09.6]} 45. Be5 {[%clk 0:00:38.6]}
45... h5 {[%clk 0:00:10.1]} 46. Bf6 {[%clk 0:00:39.8]} 46... Kb4 {[%clk
0:00:09.2]} 47. Be7+ {[%clk 0:00:39.9]} 47... Kc4 {[%clk 0:00:09.8]} 48. Bd6
{[%clk 0:00:41.5]} 48... Kd5 {[%clk 0:00:10.6]} 49. Bf8 {[%clk 0:00:42.7]} 49...
Kc4 {[%clk 0:00:12.1]} 50. Be7 {[%clk 0:00:44.6]} 50... Kd3 {[%clk 0:00:12.6]}
51. Kxb3 {[%clk 0:00:45.5]} 51... Ke2 {[%clk 0:00:13.6]} 52. Bc5 {[%clk
0:00:46.9]} 52... Kf1 {[%clk 0:00:14.7]} 53. Kc4 {[%clk 0:00:47.7]} 53... Kg2
{[%clk 0:00:16]} 54. Kd5 {[%clk 0:00:48.9]} 54... Kxh2 {[%clk 0:00:16.3]} 55.
Ke5 {[%clk 0:00:50.4]} 55... h4 {[%clk 0:00:08.4]} 56. gxh4 {[%clk 0:00:50.7]}
56... g3 {[%clk 0:00:09.5]} 57. fxg3 {[%clk 0:00:51.6]} 57... Kxg3 {[%clk
0:00:11]} 58. h5 {[%clk 0:00:52.8]} 1-0

[Event "*** Titled Tuesday Blitz"]
[Site "Chess.com"]
[Date "2020.01.07"]
[Round "7"]
[White "aquaticpineapples"]
[Black "luis-garcia"]
[Result "1-0"]
[WhiteElo "2348"]
[BlackElo "2136"]
[TimeControl "180+2"]
[EndTime "14:37:31 PST"]
[Termination "aquaticpineapples won by resignation"]

1. d4 {[%clk 0:03:01.9]} 1... d5 {[%clk 0:02:58]} 2. Nf3 {[%clk 0:03:02.8]} 2...
Nf6 {[%clk 0:02:58.2]} 3. e3 {[%clk 0:03:03.9]} 3... e6 {[%clk 0:02:59.1]} 4.
Bd3 {[%clk 0:03:04.5]} 4... c5 {[%clk 0:02:55.8]} 5. b3 {[%clk 0:03:05.6]} 5...
Be7 {[%clk 0:02:54.9]} 6. Bb2 {[%clk 0:03:06.3]} 6... O-O {[%clk 0:02:55.9]} 7.
Nbd2 {[%clk 0:03:07.3]} 7... Nc6 {[%clk 0:02:56.5]} 8. a3 {[%clk 0:03:08.1]}
8... a6 {[%clk 0:02:08.9]} 9. Ne5 {[%clk 0:03:03.1]} 9... Nd7 {[%clk 0:02:00.7]}
10. Qh5 {[%clk 0:02:40.6]} 10... g6 {[%clk 0:01:16.4]} 11. Qh6 {[%clk
0:02:20.2]} 11... Bg5 {[%clk 0:01:14.7]} 12. Qh3 {[%clk 0:02:21]} 12... cxd4
{[%clk 0:01:03.3]} 13. exd4 {[%clk 0:02:21.4]} 13... Ndxe5 {[%clk 0:01:04.2]}
14. dxe5 {[%clk 0:02:20.6]} 14... Bf4 {[%clk 0:01:05.3]} 15. Nf3 {[%clk
0:02:10.9]} 15... Qc7 {[%clk 0:00:58]} 16. O-O {[%clk 0:01:46.3]} 16... Nxe5
{[%clk 0:00:55.4]} 17. Nd4 {[%clk 0:01:26.2]} 17... Nxd3 {[%clk 0:00:42.1]} 18.
Qxd3 {[%clk 0:01:28.1]} 18... Bxh2+ {[%clk 0:00:37.9]} 19. Kh1 {[%clk 0:01:29]}
19... Be5 {[%clk 0:00:38.7]} 20. Rfe1 {[%clk 0:01:17]} 20... Bg7 {[%clk
0:00:37.9]} 21. Rad1 {[%clk 0:01:10.9]} 21... Qf4 {[%clk 0:00:37.9]} 22. g3
{[%clk 0:01:09]} 22... Qg5 {[%clk 0:00:38.2]} 23. Kg2 {[%clk 0:01:02.9]} 23...
Bd7 {[%clk 0:00:31.1]} 24. Nf3 {[%clk 0:00:57.5]} 24... Qd8 {[%clk 0:00:29.1]}
25. Ne5 {[%clk 0:00:57.8]} 25... Qc7 {[%clk 0:00:27.1]} 26. f4 {[%clk
0:00:54.2]} 26... Rac8 {[%clk 0:00:26.4]} 27. c4 {[%clk 0:00:52.2]} 27... Bc6
{[%clk 0:00:25.4]} 28. c5 {[%clk 0:00:50.5]} 28... b6 {[%clk 0:00:24.4]} 29. Bd4
{[%clk 0:00:33.7]} 29... Bb5 {[%clk 0:00:21.2]} 30. Qe3 {[%clk 0:00:32.9]} 30...
bxc5 {[%clk 0:00:21.8]} 31. Rc1 {[%clk 0:00:30.9]} 31... Qb7 {[%clk 0:00:16]}
32. Bxc5 {[%clk 0:00:26.6]} 32... Rfe8 {[%clk 0:00:16.5]} 33. Qd4 {[%clk
0:00:26.2]} 33... Bc6 {[%clk 0:00:16.9]} 34. Kh2 {[%clk 0:00:26]} 34... Qxb3
{[%clk 0:00:17.5]} 35. Rb1 {[%clk 0:00:24.8]} 35... Bxe5 {[%clk 0:00:17.9]} 36.
Rxb3 {[%clk 0:00:24]} 36... Bxd4 {[%clk 0:00:18.6]} 37. Bxd4 {[%clk 0:00:24.7]}
37... Rb8 {[%clk 0:00:19.8]} 38. Rc3 {[%clk 0:00:25.2]} 38... Bd7 {[%clk
0:00:18.9]} 39. Rec1 {[%clk 0:00:24.7]} 39... Rec8 {[%clk 0:00:20]} 40. Be5
{[%clk 0:00:25.4]} 40... Rxc3 {[%clk 0:00:20]} 41. Rxc3 {[%clk 0:00:26.6]} 41...
Rc8 {[%clk 0:00:21.9]} 42. Rb3 {[%clk 0:00:26.8]} 42... h5 {[%clk 0:00:21.9]}
43. Rb7 {[%clk 0:00:27.7]} 43... Be8 {[%clk 0:00:23.1]} 44. Rb6 {[%clk
0:00:28.5]} 44... Bb5 {[%clk 0:00:24.1]} 45. Rb7 {[%clk 0:00:29.6]} 45... Be8
{[%clk 0:00:25.2]} 46. Bf6 {[%clk 0:00:30.6]} 46... Bb5 {[%clk 0:00:24.4]} 47.
Kg2 {[%clk 0:00:31.2]} 47... Be8 {[%clk 0:00:24.9]} 48. Kf3 {[%clk 0:00:32.4]}
48... Rc2 {[%clk 0:00:25.3]} 49. Rb8 {[%clk 0:00:32.7]} 49... Kh7 {[%clk
0:00:26]} 50. Rxe8 {[%clk 0:00:33]} 50... g5 {[%clk 0:00:27.9]} 51. fxg5 {[%clk
0:00:32.2]} 51... Kg6 {[%clk 0:00:29.3]} 52. Rf8 {[%clk 0:00:32.3]} 52... Ra2
{[%clk 0:00:29.1]} 53. Be7 {[%clk 0:00:33]} 53... a5 {[%clk 0:00:29.5]} 54. Ra8
{[%clk 0:00:33.8]} 54... d4 {[%clk 0:00:29.9]} 55. Rxa5 {[%clk 0:00:34.2]} 55...
e5 {[%clk 0:00:31.4]} 56. Rxe5 {[%clk 0:00:34.1]} 56... d3 {[%clk 0:00:32.7]}
57. Rd5 {[%clk 0:00:35.2]} 57... Rd2 {[%clk 0:00:33.3]} 58. Ke3 {[%clk
0:00:36.2]} 58... Rg2 {[%clk 0:00:34.2]} 59. Bd6 {[%clk 0:00:30.6]} 59... f6
{[%clk 0:00:33.4]} 60. gxf6 {[%clk 0:00:31.2]} 60... h4 {[%clk 0:00:34.7]} 61.
gxh4 {[%clk 0:00:31.5]} 61... Kxf6 {[%clk 0:00:33.3]} 62. Kxd3 {[%clk
0:00:30.4]} 62... Rg4 {[%clk 0:00:34.4]} 63. Rd4 {[%clk 0:00:30.5]} 63... Rg3+
{[%clk 0:00:34.8]} 64. Bxg3 {[%clk 0:00:30.8]} 1-0

[Event "*** Titled Tuesday Blitz"]
[Site "Chess.com"]
[Date "2020.01.07"]
[Round "7"]
[White "norwaytoadog"]
[Black "AlexandraBotez"]
[Result "1-0"]
[WhiteElo "2326"]
[BlackElo "2123"]
[TimeControl "180+2"]
[EndTime "14:37:44 PST"]
[Termination "norwaytoadog won by checkmate"]

1. e4 {[%clk 0:03:01.9]} 1... e6 {[%clk 0:03:01]} 2. d4 {[%clk 0:03:02.4]} 2...
d5 {[%clk 0:03:00.9]} 3. Nc3 {[%clk 0:03:03.4]} 3... Nf6 {[%clk 0:03:01.5]} 4.
e5 {[%clk 0:03:04.3]} 4... Nfd7 {[%clk 0:03:02.3]} 5. f4 {[%clk 0:03:05.1]} 5...
c5 {[%clk 0:03:03.6]} 6. Nf3 {[%clk 0:03:05.7]} 6... Nc6 {[%clk 0:03:05]} 7. Be3
{[%clk 0:03:06.3]} 7... a6 {[%clk 0:03:06.4]} 8. Be2 {[%clk 0:03:06.7]} 8... b5
{[%clk 0:03:06.5]} 9. O-O {[%clk 0:03:05.5]} 9... Qb6 {[%clk 0:03:04.9]} 10. a4
{[%clk 0:03:05.7]} 10... b4 {[%clk 0:03:00.4]} 11. a5 {[%clk 0:03:06]} 11... Qa7
{[%clk 0:02:59.8]} 12. Na4 {[%clk 0:02:44.9]} 12... c4 {[%clk 0:02:43.1]} 13. f5
{[%clk 0:02:39.3]} 13... Ndxe5 {[%clk 0:02:34]} 14. Qd2 {[%clk 0:02:06]} 14...
Ng4 {[%clk 0:01:58.2]} 15. Nb6 {[%clk 0:01:49.3]} 15... Bd6 {[%clk 0:01:36.7]}
16. Nxa8 {[%clk 0:01:34.5]} 16... Qxa8 {[%clk 0:01:35.4]} 17. Bf4 {[%clk
0:01:28.2]} 17... Bxf4 {[%clk 0:01:16.8]} 18. Qxf4 {[%clk 0:01:28.5]} 18... exf5
{[%clk 0:01:18.2]} 19. Qd6 {[%clk 0:01:20.6]} 19... Be6 {[%clk 0:01:03.5]} 20.
Rae1 {[%clk 0:01:10.7]} 20... Nf6 {[%clk 0:00:56.7]} 21. Bxc4 {[%clk 0:01:01.4]}
21... Ne4 {[%clk 0:00:54.8]} 22. Qc7 {[%clk 0:00:44.6]} 22... dxc4 {[%clk
0:00:45.3]} 23. d5 {[%clk 0:00:23.6]} 23... Bxd5 {[%clk 0:00:42.7]} 24. Ng5
{[%clk 0:00:21.4]} 24... Qa7+ {[%clk 0:00:43]} 25. Qxa7 {[%clk 0:00:22]} 25...
Nxa7 {[%clk 0:00:44.6]} 26. Rxf5 {[%clk 0:00:22]} 26... O-O {[%clk 0:00:27.7]}
27. Nxe4 {[%clk 0:00:21.8]} 27... Be6 {[%clk 0:00:26.8]} 28. Rc5 {[%clk
0:00:21.1]} 28... h6 {[%clk 0:00:23.7]} 29. Rc7 {[%clk 0:00:19.8]} 29... Nb5
{[%clk 0:00:23.6]} 30. Rc6 {[%clk 0:00:19.4]} 30... Nd4 {[%clk 0:00:24.4]} 31.
Rxa6 {[%clk 0:00:19.4]} 31... Nxc2 {[%clk 0:00:25.6]} 32. Nc5 {[%clk 0:00:19]}
32... c3 {[%clk 0:00:16.2]} 33. Rb1 {[%clk 0:00:16.2]} 33... Bf5 {[%clk
0:00:15.6]} 34. bxc3 {[%clk 0:00:16.3]} 34... bxc3 {[%clk 0:00:16.4]} 35. Rc1
{[%clk 0:00:17.1]} 35... Nb4 {[%clk 0:00:15.7]} 36. Rb6 {[%clk 0:00:12.4]} 36...
Na2 {[%clk 0:00:16.8]} 37. Rf1 {[%clk 0:00:06.5]} 37... c2 {[%clk 0:00:17.3]}
38. Nb3 {[%clk 0:00:07.2]} 38... Bd3 {[%clk 0:00:16.2]} 39. Rf3 {[%clk
0:00:05.6]} 39... Re8 {[%clk 0:00:12.1]} 40. Rxd3 {[%clk 0:00:03.4]} 40... Re1+
{[%clk 0:00:08.3]} 41. Kf2 {[%clk 0:00:04.6]} 41... c1=Q {[%clk 0:00:09.2]} 42.
Nxc1 {[%clk 0:00:05.2]} 42... Rxc1 {[%clk 0:00:11.1]} 43. Rd8+ {[%clk
0:00:05.7]} 43... Kh7 {[%clk 0:00:11.9]} 44. a6 {[%clk 0:00:06.7]} 44... Nc3
{[%clk 0:00:09.3]} 45. a7 {[%clk 0:00:07.1]} 45... Ne4+ {[%clk 0:00:10.4]} 46.
Ke3 {[%clk 0:00:07.6]} 46... Re1+ {[%clk 0:00:09.7]} 47. Kf4 {[%clk 0:00:06.2]}
47... g5+ {[%clk 0:00:10.3]} 48. Kf5 {[%clk 0:00:06.1]} 48... Nd6+ {[%clk
0:00:04.8]} 49. Rbxd6 {[%clk 0:00:06.1]} 49... Ra1 {[%clk 0:00:06.7]} 50. a8=Q
{[%clk 0:00:05.5]} 50... Rxa8 {[%clk 0:00:06.9]} 51. Rxa8 {[%clk 0:00:06.3]}
51... Kg7 {[%clk 0:00:08.8]} 52. Rd7 {[%clk 0:00:07.1]} 52... h5 {[%clk
0:00:09.2]} 53. Raa7 {[%clk 0:00:08.1]} 53... Kh6 {[%clk 0:00:09.9]} 54. Rxf7
{[%clk 0:00:08.4]} 54... h4 {[%clk 0:00:11]} 55. Rh7# {[%clk 0:00:09.2]} 1-0